fUSD/lending_fUSD_20240704
["ID","MTS","AMOUNT","RATE_DAILY","PERIOD"]
[331062183,1720051355806,1230.8654358,0.00011199,2]
[331062184,1720051391306,1518.70193,0.00011199,2]
[331062203,1720051676137,151.0,0.00026,120]
[331062204,1720051695832,820.5769572,0.00011199,2]
[331062205,1720051704822,820.5769572,0.00011199,2]
[331062212,1720051832642,-356.26716225,0.00013543,2]
[331062213,1720051832653,-182.61283775,0.00013574,2]
[331062214,1720051832665,-347.40099992,0.00013574,2]
[331062215,1720051832677,-441.16324696,0.00013574,2]
[331062216,1720051832687,-64.2677268,0.0001359,2]
[331062217,1720051832700,-577.50775,0.0001359,2]
[331062218,1720051832713,-876.9264532,0.0001359,2]
[331062219,1720051832727,-180.3735468,0.0001609,2]
[331062220,1720051832739,-1338.3283932,0.0001609,2]
[331062221,1720051832750,-300.0,0.00018589,2]
[331062222,1720051832762,-1518.70193,0.0001859,2]
[331062223,1720051832773,-421.25,0.00018756,2]
[331062224,1720051832784,-499.99,0.00018756,2]
[331062225,1720051832795,-2116.76775926,0.000203,2]
[331062226,1720051832813,-383.23224074,0.000203,2]
[331062227,1720051832823,-157.38,0.00020461,2]
[331062228,1720051832834,-150.0,0.00020461,2]
[331062229,1720051832844,-150.0,0.00020461,2]
[331062230,1720051832854,-250.0,0.00020557,2]
[331062231,1720051832864,-172.63,0.00020635,2]
[331062232,1720051832875,-490.14892132,0.00020675,2]
[331062233,1720051832885,-377.01,0.00020681,2]
[331062234,1720051832895,-1000.0,0.00020836,2]
[331062235,1720051832906,-448.19047151,0.000209,2]
[331062236,1720051832916,-155.0,0.000209,2]
[331062237,1720051832926,-5539.04276937,0.000209,2]
[331062238,1720051832939,-440.38528069,0.000209,2]
[331062239,1720051832952,-566.55211337,0.000209,2]
[331062240,1720051832964,-866.7628267,0.000209,2]
[331062241,1720051832976,-446.17024212,0.000209,2]
[331062242,1720051832989,-293.5153447,0.000209,2]
[331062263,1720051838305,-161.13595753,0.00013474,2]
[331062264,1720051838317,-52.68924148,0.000209,2]
[331062265,1720051838326,-550.6201206,0.000209,2]
[331062266,1720051838336,-882.16736644,0.000209,2]
[331062267,1720051838346,-581.49834426,0.000209,2]
[331062268,1720051838355,-1707.0,0.000209,4]
[331062270,1720051838366,-1173.71,0.00021,2]
[331062271,1720051838376,-61.90450152,0.00021,2]
[331062273,1720051838387,-88.09549848,0.00021,2]
[331062275,1720051838397,-421.25,0.00021019,2]
[331062276,1720051838408,-1555.37,0.0002104,2]
[331062277,1720051838417,-2822.03450162,0.00021044,2]
[331062280,1720051838438,-18294.49093001,0.00021044,2]
[331062282,1720051838452,-2000.0,0.00021044,2]
[331062286,1720051838476,-1883.47456837,0.00021044,2]
[331062288,1720051838486,-2522.78032202,0.00021057,2]
[331062291,1720051838507,-750.09615756,0.00021057,2]
[331062302,1720051839943,-221.49597066,0.000208,2]
[331062304,1720051839953,-1727.12352042,0.00021057,2]
[331062306,1720051839963,-1518.70193,0.0002109,2]
[331062307,1720051839973,-813.85984749,0.0002109,2]
[331062308,1720051840059,-722.4597289,0.0002109,2]
[331062309,1720051840071,-777.04473259,0.0002109,2]
[331062310,1720051840083,-188.19569102,0.0002109,2]
[331062311,1720051840094,-68.84536586,0.00021103,2]
[331062312,1720051840107,-309.21634914,0.00021103,2]
[331062313,1720051840117,-1041.00859,0.00021103,2]
[331062314,1720051840127,-2058.390826,0.00021103,2]
[331062315,1720051840138,-1039.669715,0.00021103,2]
[331062316,1720051840148,-683.059265,0.00021103,2]
[331062317,1720051840158,-5000.0,0.00021168,2]
[331062318,1720051840169,-23976.7632781,0.00021241,2]
[331062319,1720051840279,-1023.2367219,0.00021241,2]
[331062320,1720051840290,-5000.0,0.00021249,2]
[331062321,1720051840300,-425.28274726,0.00021294,2]
[331062344,1720051842974,-274.44735054,0.00021294,2]
[331062347,1720051842985,-4300.2699022,0.00021294,2]
[331062348,1720051842995,-1897.14111144,0.00021315,2]
[331062349,1720051843006,-781.08898636,0.00021347,2]
[331062350,1720051843032,-622.24139103,0.00021347,2]
[331062354,1720051844080,-1097.17962261,0.00021347,2]
[331062355,1720051844090,-176.691041,0.00021357,2]
[331062356,1720051844100,-378.061715,0.00021357,2]
[331062357,1720051844110,-1041.00859,0.00021357,2]
[331062358,1720051844119,-2058.390826,0.00021357,2]
[331062359,1720051844129,-1039.669715,0.00021357,2]
[331062360,1720051844139,-683.059265,0.00021357,2]
[331062361,1720051844152,-5000.0,0.00021365,2]
[331062362,1720051844163,-20941.32858637,0.00021395,2]
[331062363,1720051844175,-319.92311454,0.00021395,2]
[331062374,1720051846294,-700.87679163,0.00021395,2]
[331063511,1720052303326,218.10166328,0.00011199,2]
[331063513,1720052318348,217.78950584,0.00011199,2]
[331063545,1720053032108,-286.7120609,0.00013374,2]
[331063546,1720053032243,-145.4438391,0.00013374,2]
[331063547,1720053032252,-190.7761609,0.00018568,2]
[331063548,1720053032263,-188.3438391,0.00018568,2]
[331063549,1720053032272,-158.19402084,0.00018919,2]
[331063550,1720053032282,-356.26716225,0.00018999,2]
[331063551,1720053032291,-297.19497781,0.00019299,2]
[331063552,1720053032362,-194.62952043,0.00019299,2]
[331063553,1720053032371,-155.0,0.0002,2]
[331063554,1720053032380,-448.19047151,0.0002,2]
[331063555,1720053032389,-198.05546682,0.0002,2]
[331063556,1720053038189,-1807.94453318,0.0002,2]
[331063557,1720053038199,-192.05546682,0.0002,3]
[331063558,1720053038253,-2946.94453318,0.0002,3]
[331063559,1720053038263,-75.85546682,0.00020407,2]
[331063560,1720053038497,-174.14453318,0.00020407,2]
[331063561,1720053038507,-301.6,0.0002048,2]
[331063562,1720053038517,-379.12,0.00020831,2]
[331063563,1720053038527,-2000.0,0.00021,10]
[331063564,1720053038537,-550.03158124,0.00021395,2]
[331063565,1720053038547,-882.16736644,0.00021395,2]
[331063566,1720053038557,-581.49834426,0.00021395,2]
[331063567,1720053038567,-253.11699,0.00021395,2]
[331063568,1720053038578,-2501.56,0.00021396,2]
[331063569,1720053038588,-275.883837,0.000214,2]
[331063570,1720053038598,-5002.28,0.00021408,2]
[331063571,1720053038609,-61.94092884,0.00021415,2]
[331063572,1720053038622,-325.16500787,0.00021415,2]
[331063573,1720053038640,-718.40802695,0.00021415,2]
[331063584,1720053040602,-350.67470084,0.00021415,2]
[331063585,1720053040615,-23543.8113355,0.00021415,2]
[331063586,1720053040626,-3244.86538536,0.0002142,2]
[331063620,1720053044262,-420.57814627,0.00021394,2]
[331063625,1720053046566,-311.6,0.00021394,2]
[331063626,1720053197087,3057.62949328,0.00011199,2]
[331063627,1720053243087,3073.2177715,0.00011199,2]
[331063628,1720053345593,2004.4104095,0.00011199,2]
[331063629,1720053354991,1070.8029335,0.00011199,2]
[331063630,1720053357933,717.29122203,0.00011199,2]
[331063631,1720053391050,474.91891764,0.00011199,2]
[331063632,1720053392401,672.35618026,0.00011199,2]
[331063633,1720053398277,754.14237346,0.00011199,2]
[331063634,1720053401357,526.98712938,0.00011199,2]
[331063635,1720053410420,233.74988884,0.00026,120]
[331063636,1720053412406,660.95341684,0.00011199,2]
[331063637,1720053421498,211.56648654,0.00011199,2]
[331063639,1720053446700,155.0,0.00011199,2]
[331063640,1720053453917,544.6250011,0.00011199,2]
[331063641,1720053456051,155.10345692,0.00011199,2]
[331063642,1720053456401,475.54963094,0.00011199,2]
[331063643,1720053458244,302.3204216,0.00011199,2]
[331063644,1720053459258,242.35075042,0.00011199,2]
[331063645,1720053464550,348.53483336,0.00011199,2]
[331063646,1720053469620,553.07078195,0.00011199,2]
[331063647,1720053471682,269.63348263,0.00011199,2]
[331063648,1720053473415,356.26716225,0.00011199,2]
[331063649,1720053474393,308.06128514,0.00011199,2]
[331063650,1720053474830,155.0,0.00011199,2]
[331063651,1720053475072,-155.66263609,0.00012273,2]
[331063652,1720053475094,-197.7067058,0.00012273,2]
[331063653,1720053475114,-160.6222066,0.00012273,2]
[331063654,1720053475134,-254.14338377,0.00012273,2]
[331063655,1720053475152,-296.90387879,0.00012273,2]
[331063656,1720053475171,-163.8115837,0.00012273,2]
[331063657,1720053475190,-227.12084219,0.00012273,2]
[331063658,1720053475209,-156.19862631,0.00012273,2]
[331063659,1720053475231,-232.79014581,0.00012273,2]
[331063660,1720053475251,-155.03999094,0.00012273,2]
[331063661,1720053477227,155.28352034,0.00011199,2]
[331063662,1720053478759,-62.83189228,0.00012273,2]
[331063663,1720053478778,-308.19482801,0.00012273,2]
[331063664,1720053478798,-172.1320514,0.00012273,2]
[331063665,1720053478818,-202.55192225,0.00012273,2]
[331063666,1720053478839,-158.42162529,0.00012273,2]
[331063667,1720053478858,-160.36976779,0.00012273,2]
[331063668,1720053478877,-264.57347071,0.00012273,2]
[331063669,1720053478896,-365.10484834,0.00012273,2]
[331063670,1720053478915,-155.32379512,0.00012273,2]
[331063671,1720053478934,-150.49579881,0.00012273,2]
[331063672,1720053479037,220.33200542,0.00011199,2]
[331063673,1720053480932,-4.62139987,0.00012273,2]
[331063674,1720053480954,-328.45118823,0.00012273,2]
[331063675,1720053480973,-305.42303826,0.00012273,2]
[331063676,1720053480992,-378.91558668,0.00012273,2]
[331063677,1720053481011,-310.0,0.00012273,2]
[331063678,1720053481030,-155.0,0.00012273,2]
[331063679,1720053481050,-226.4693386,0.00012273,2]
[331063680,1720053481069,-291.11944836,0.00012273,2]
[331063681,1720053484349,-7.2769124,0.00012273,2]
[331063682,1720053484368,-202.05741208,0.00012273,2]
[331063683,1720053484387,-304.36573674,0.00012273,2]
[331063684,1720053485179,155.46122402,0.00012273,2]
[331063685,1720053522032,959.77692089,0.00011199,2]
[331063686,1720053558288,310.0,0.00011199,2]
[331063687,1720053588351,348.53483336,0.00011199,2]
[331063688,1720053605538,959.77692089,0.00011199,2]
[331063689,1720053692543,381.68824575,0.00011199,2]
[331063690,1720053692565,578.08867514,0.00011199,2]
[331063691,1720053694354,348.53483336,0.00011199,2]
[331063692,1720053717947,1071.01746331,0.00011199,2]
[331063693,1720053751218,2.35902819,0.00011199,2]
[331063694,1720053751239,481.41642057,0.00011199,2]
[331063695,1720053796553,959.77692089,0.00011199,2]
[331063696,1720053804369,313.21250003,0.00011199,2]
[331063697,1720053884613,245.59415851,0.00011199,2]
[331063698,1720053884634,1000.0,0.00011199,2]
[331063699,1720053884672,2039.44845151,0.00011199,2]
[331063700,1720053892983,544.6250011,0.00011199,2]
[331063701,1720053896294,2446.09468396,0.00011199,2]
[331063702,1720053903571,486.89125262,0.00011199,2]
[331063703,1720053922400,253.66525961,0.00011199,2]
[331063704,1720053923212,378.28795838,0.00011199,2]
[331063705,1720053927490,155.0,0.00011199,2]
[331063706,1720053930859,155.17450536,0.00011199,2]
[331063707,1720053940437,356.26716225,0.00011199,2]
[331063708,1720053946030,213.4977548,0.00011199,2]
[331063709,1720053950715,269.63348263,0.00011199,2]
[331063710,1720053955440,356.26716225,0.00011199,2]
[331063711,1720053981451,158.38809475,0.00011199,2]
[331063712,1720053982324,242.35075042,0.00011199,2]
[331063713,1720054024186,163.8115837,0.00011199,2]
[331063726,1720054114976,1071.01746331,0.00011199,2]
[331063727,1720054175734,155.54915044,0.00011199,2]
[331063728,1720054196611,1252.75750804,0.00011199,2]
[331063744,1720054234366,-15909.9852,0.00012202,2]
[331063745,1720054234376,-403.34944025,0.00012302,2]
[331063746,1720054234385,-269.77961105,0.00013128,2]
[331063747,1720054234395,-242.40389105,0.00013472,2]
[331063748,1720054234404,-298.28065243,0.00013472,2]
[331063749,1720054234413,-356.26716225,0.00013516,2]
[331063750,1720054234422,-338.21597574,0.00013516,2]
[331063751,1720054234435,-18.05118651,0.00013516,2]
[331063752,1720054234445,-520.68711881,0.00013543,2]
[331063753,1720054234454,-202.61158518,0.00013574,2]
[331063754,1720054234468,-250.88067996,0.00013574,2]
[331063755,1720054234486,-300.32001124,0.00013574,2]
[331063756,1720054234496,-3073.2177715,0.00013574,2]
[331063757,1720054234506,-1371.62364367,0.00013574,2]
[331063758,1720054234515,-2409.32012221,0.0001387,2]
[331063759,1720054234525,-1173.0178889,0.0001399,2]
[331063760,1720054234535,-287.99948217,0.0001399,2]
[331063761,1720054234547,-211.99051783,0.0001399,2]
[331063762,1720054234556,-2854.00308606,0.0001399,2]
[331063763,1720054238300,-319.5989622,0.00013128,2]
[331063764,1720054238310,-1180.4010378,0.0001399,2]
[331063765,1720054238348,-1238.10587614,0.0001399,2]
[331063766,1720054238357,-163.8,0.0001399,2]
[331063767,1720054238367,-311.6,0.0001399,3]
[331063768,1720054238376,-228.06003963,0.00013999,2]
[331063769,1720054238388,-1078.0799953,0.00013999,2]
[331063770,1720054238399,-357.68038666,0.00013999,2]
[331063771,1720054238409,-737.68732455,0.00014,2]
[331063772,1720054238420,-1840.7599115,0.00014,2]
[331063773,1720054238431,-11449.30971465,0.00014,2]
[331063774,1720054238901,-1217.55232587,0.00014,2]
[331063775,1720054238929,-4162.55185861,0.00014,2]
[331063776,1720054238975,-6310.74875307,0.00014,2]
[331063777,1720054239024,-1482.26936924,0.00014,2]
[331063778,1720054239067,-2763.68000001,0.00014,2]
[331063791,1720054240463,-548.35476286,0.00014,2]
[331063792,1720054240475,-528.64592436,0.00014,2]
[331063793,1720054240752,-1595.4278427,0.00014,2]
[331063806,1720054244585,-2399.64,0.00014,2]
[331063808,1720054246529,-1000.0,0.00014,2]
[331063819,1720054636491,542.64427576,0.00011199,2]
[331063820,1720054652507,155.0,0.00011199,2]
[331063821,1720054688014,325.76900242,0.00011199,2]
[331063822,1720054706013,356.26716225,0.00011199,2]
[331063823,1720054739831,242.40389105,0.00011199,2]
[331063824,1720054813032,29048.17063881,0.00011199,2]
[331063825,1720054922732,3073.2177715,0.00011199,2]
[331063827,1720054996548,155.0,0.00011199,2]
[331063828,1720055055467,526.98712938,0.00011199,2]
[331063829,1720055096692,945.10047077,0.00011199,2]
[331063830,1720055116781,3073.81117631,0.00011199,2]
[331063831,1720055134069,155.0,0.00011199,2]
[331063833,1720055145888,4453.94405105,0.00011199,2]
[331063834,1720055149460,155.0,0.00011199,2]
[331063835,1720055163871,243.29592416,0.00011199,2]
[331063836,1720055165566,2828.80779475,0.00011199,2]
[331063837,1720055184215,3107.31885347,0.00011199,2]
[331063838,1720055215068,155.0,0.00011199,2]
[331063839,1720055224624,264.53806509,0.00011199,2]
[331063849,1720055227038,5491.44493384,0.00011199,2]
[331063854,1720055236403,3695.0,0.00011199,2]
[331063855,1720055236783,155.33320914,0.00011199,2]
[331063857,1720055255808,438.5478668,0.00011199,2]
[331063858,1720055290967,356.26716225,0.00011199,2]
[331063859,1720055306515,356.26716225,0.00011199,2]
[331063860,1720055323262,3072.62436669,0.00011199,2]
[331063861,1720055349837,1500.0,0.00011199,2]
[331063878,1720055399477,158.96341014,0.00011199,2]
[331063879,1720055400224,-335.09064333,0.00011493,2]
[331063880,1720055400254,-118.00477378,0.00011593,2]
[331063883,1720055431596,650.69302056,0.00011199,2]
[331063888,1720055432932,-45.58522622,0.00011593,2]
[331063889,1720055432942,-245.85851242,0.00012173,2]
[331063890,1720055433020,-893.88077685,0.00012173,2]
[331063891,1720055433033,-463.7839458,0.00012173,2]
[331063892,1720055433117,-337.21932,0.00012173,2]
[331063897,1720055434852,308.19482801,0.00011199,2]
[331063898,1720055435304,492.19298441,0.00011199,2]
[331063922,1720055437912,-1609.19616097,0.00012173,2]
[331063923,1720055437924,-278.0111099,0.00012173,2]
[331063934,1720055440022,200.19866925,0.00011199,2]
[331063935,1720055440166,1134.08647708,0.00011199,2]
[331063937,1720055440418,-977.51181389,0.00012173,2]
[331063939,1720055440430,-4805.46163981,0.00012188,2]
[331063941,1720055440441,-4805.46163981,0.00012202,2]
[331063943,1720055440454,-227.12084219,0.00012273,2]
[331063946,1720055440467,-186.52661499,0.00012302,2]
[331063948,1720055440482,-201.51938811,0.00012302,2]
[331063951,1720055440494,-100.02226213,0.00012302,2]
[331063960,1720055442817,-169.25060152,0.00012302,2]
[331063961,1720055442828,-127.99125221,0.00012302,2]
[331063962,1720055444762,-62.90174498,0.00012302,2]
[331063998,1720055446100,-336.09413219,0.00012302,2]
[331064000,1720055446112,-183.79028084,0.00012302,2]
[331064002,1720055446123,-365.14265726,0.00012302,2]
[331064004,1720055446134,-155.0,0.00012302,2]
[331064006,1720055446144,-47.12569707,0.00012314,2]
[331064008,1720055446159,-108.13681286,0.00012314,2]
[331064010,1720055446169,-158.25040673,0.00012314,2]
[331064013,1720055446180,-235.41524417,0.00013128,2]
[331064016,1720055446194,-155.30226453,0.00013128,2]
[331064019,1720055446203,-155.0,0.00013128,2]
[331064021,1720055446212,-301.37576212,0.00013128,2]
[331064022,1720055446221,-155.0,0.00013128,2]
[331064024,1720055446230,-155.0,0.00013128,2]
[331064026,1720055446239,-206.17373388,0.00013128,2]
[331064028,1720055446248,-150.0,0.00013359,2]
[331064030,1720055446258,-545.92870647,0.00013374,2]
[331064033,1720055446269,-2896.5521411,0.00013374,2]
[331064037,1720055446289,-12473.23545243,0.00013374,2]
[331064039,1720055446298,-978.16242731,0.00013472,2]
[331064042,1720055446307,-1169.048298,0.00013472,2]
[331064045,1720055446317,-438.35174148,0.00013472,2]
[331064047,1720055446326,-955.9732708,0.00013472,2]
[331064049,1720055446335,-604.78351958,0.00013516,2]
[331064051,1720055446344,-217.90047204,0.00013543,2]
[331064053,1720055446353,-403.4503373,0.00013543,2]
[331064055,1720055446363,-1051.20234621,0.00013574,2]
[331064057,1720055446372,-310.0,0.00013574,2]
[331064059,1720055446381,-1069.67493178,0.00013574,2]
[331064061,1720055446390,-295.02,0.00013844,2]
[331064063,1720055446401,-774.92376784,0.00013849,2]
[331064064,1720055446410,-860.17499323,0.00013989,2]
[331064065,1720055446419,-155.0,0.00013999,2]
[331064066,1720055446428,-84137.73180595,0.00014,2]
[331064068,1720055446437,-1035.82302,0.00014,2]
[331064069,1720055446451,-151.0,0.00014,2]
[331064070,1720055446461,-151.0,0.00014,2]
[331064071,1720055446470,-196.43586911,0.00014099,2]
[331064072,1720055446479,-170.29,0.00014252,2]
[331064073,1720055446492,-2727.24,0.00014294,2]
[331064074,1720055446501,-1629.84274034,0.00014499,2]
[331064075,1720055446510,-250.0,0.00014588,2]
[331064076,1720055446519,-250.0,0.00014733,2]
[331064077,1720055446528,-155.0,0.00014849,2]
[331064078,1720055446537,-366.58364766,0.00014899,2]
[331064079,1720055446546,-1500.0,0.00014918,5]
[331064080,1720055446555,-899.64,0.00014918,3]
[331064081,1720055446564,-346.47813981,0.00014966,2]
[331064082,1720055446572,-1035.82303,0.0001504,2]
[331064083,1720055446583,-606.61,0.0001519,2]
[331064084,1720055446592,-1035.82303,0.0001629,2]
[331064085,1720055446601,-456.06,0.00016662,2]
[331064086,1720055446611,-151.0,0.00016969,2]
[331064087,1720055446620,-151.0,0.00016969,2]
[331064088,1720055446629,-96793.87886913,0.00016969,2]
[331064089,1720055446639,-172.84427659,0.00016989,2]
[331064090,1720055446650,-606.61,0.00017089,2]
[331064091,1720055446659,-518.63271752,0.00017159,2]
[331064092,1720055446669,-202.25757491,0.00017257,2]
[331064093,1720055446678,-1035.82302,0.0001754,2]
[331064094,1720055446689,-296.77788761,0.00017889,2]
[331064095,1720055446698,-172.84427658,0.00018169,2]
[331064096,1720055446707,-118.2405146,0.00018533,2]
[331064097,1720055539877,363.58934432,0.00011199,2]
[331064099,1720055862238,483.50902593,0.00011199,2]
[331064100,1720056165596,7588.81671987,0.00011199,2]
[331064101,1720056220971,1629.84274034,0.00011199,2]
[331064102,1720056232171,1629.84274034,0.00011199,2]
[331064103,1720056237667,1148.35734526,0.00011199,2]
[331064104,1720056259341,1902.84188033,0.00011199,2]
[331064106,1720056356767,545.85820458,0.00011199,2]
[331064108,1720056414905,2631.77911038,0.00011199,2]
[331064118,1720056443673,2415.28947108,0.00011199,2]
[331064121,1720056448223,2377.87728637,0.00011199,2]
[331064123,1720056481669,1264.45674502,0.00011199,2]
[331064124,1720056488812,492.19298441,0.00011199,2]
[331064125,1720056518166,202.25757491,0.00011199,2]
[331064126,1720056523501,155.0,0.00011199,2]
[331064127,1720056543218,235.40348138,0.00011199,2]
[331064128,1720056548162,202.25757491,0.00011199,2]
[331064130,1720056554246,625.64470959,0.00011199,2]
[331064131,1720056556330,366.58364766,0.00011199,2]
[331064132,1720056558143,163.8221225,0.00011199,2]
[331064133,1720056577193,626.9635138,0.00011199,2]
[331064134,1720056584596,475.49616812,0.00011199,2]
[331064135,1720056599036,300.97726413,0.00011199,2]
[331064136,1720056599404,196.02447638,0.00011199,2]
[331064137,1720056601453,155.0,0.00011199,2]
[331064138,1720056604300,684.90615013,0.00011199,2]
[331064139,1720056618306,208.77029203,0.00011199,2]
[331064140,1720056619940,155.21845942,0.00011199,2]
[331064141,1720056628384,379.5496822,0.00011199,2]
[331064142,1720056628629,4088.33891972,0.00011199,2]
[331064143,1720056631618,346.47813981,0.00011199,2]
[331064145,1720056632238,-256.77297901,0.00012173,2]
[331064146,1720056632247,-403.57810878,0.00012273,2]
[331064147,1720056632256,-155.0,0.00012273,2]
[331064148,1720056632266,-68.03530772,0.00012273,2]
[331064149,1720056632277,-241.96469228,0.00012273,2]
[331064150,1720056632286,-208.03530772,0.00012302,2]
[331064151,1720056632298,-19.08553447,0.00012302,2]
[331064152,1720056632307,-997.95759297,0.00012302,2]
[331064153,1720056632318,-631.88514737,0.00012302,2]
[331064154,1720056632328,-159.36307648,0.00013128,2]
[331064155,1720056632339,-1660.29818461,0.00013128,2]
[331064156,1720056632351,-23432.81755636,0.00013128,2]
[331064157,1720056632360,-364.844001,0.00013472,2]
[331064158,1720056632369,-2200.02980555,0.00013472,2]
[331064159,1720056632378,-163.77694291,0.00013516,2]
[331064160,1720056632387,-155.0,0.00013516,2]
[331064161,1720056632395,-295.73291685,0.00013516,2]
[331064162,1720056632404,-721.13355806,0.00013516,2]
[331064163,1720056632414,-218.39127127,0.00013516,2]
[331064164,1720056632426,-308.19482801,0.00013516,2]
[331064165,1720056632438,-490.44781868,0.00013543,2]
[331064166,1720056632447,-438.44980414,0.00013543,2]
[331064167,1720056632456,-530.42642311,0.00013543,2]
[331064168,1720056632465,-266.41028447,0.00013543,2]
[331064169,1720056632474,-150.0,0.00013573,2]
[331064170,1720056632483,-366.35666391,0.00013574,2]
[331064171,1720056632491,-3853.94698978,0.00013574,2]
[331064172,1720056632502,-163.55107225,0.00013574,2]
[331064173,1720056632512,-2085.00833623,0.00013574,2]
[331064174,1720056632521,-155.13592099,0.00013574,2]
[331064175,1720056632531,-155.45409586,0.00013574,2]
[331064176,1720056632540,-518.69562264,0.00013849,2]
[331064177,1720056632549,-150.99,0.00013999,2]
[331064178,1720056632558,-150.99,0.00013999,2]
[331064179,1720056632567,-477.43,0.00014451,2]
[331064181,1720056632576,-240.0,0.00014836,2]
[331064183,1720056632585,-499.99,0.00014899,2]
[331064184,1720056632594,-2976.61,0.00016277,2]
[331064185,1720056632603,-826.09,0.00016277,2]
[331064186,1720056632612,-363.96,0.00016315,2]
[331064187,1720056632621,-169.17,0.00016554,2]
[331064188,1720056632630,-16611.77,0.00016563,2]
[331064189,1720056632639,-1280.15,0.00016583,2]
[331064190,1720056632648,-1500.0,0.00016627,5]
[331064191,1720056632657,-250.0,0.00016645,2]
[331064192,1720056632666,-1439.17,0.00016657,2]
[331064193,1720056632675,-250.0,0.00016688,2]
[331064194,1720056632686,-477.43,0.00016715,2]
[331064195,1720056632694,-156.13,0.00016738,2]
[331064196,1720056632703,-247.94,0.00017031,2]
[331064197,1720056632712,-247.94,0.00017035,2]
[331064198,1720056632721,-247.94,0.0001704,2]
[331064199,1720056632730,-247.94,0.00017044,2]
[331064200,1720056632739,-247.94,0.00017049,2]
[331064201,1720056632748,-169.39,0.00017049,2]
[331064202,1720056632757,-247.94,0.00017053,2]
[331064203,1720056632766,-247.94,0.00017058,2]
[331064204,1720056632775,-247.94,0.00017062,2]
[331064205,1720056632784,-247.94,0.00017067,2]
[331064206,1720056632793,-247.94,0.00017071,2]
[331064207,1720056632802,-247.94,0.00017076,2]
[331064208,1720056632811,-247.94,0.0001708,2]
[331064209,1720056632820,-247.94,0.00017085,2]
[331064210,1720056632829,-247.94,0.00017089,2]
[331064211,1720056632839,-247.94,0.00017094,2]
[331064212,1720056632847,-247.94,0.00017098,2]
[331064213,1720056632856,-247.94,0.00017103,2]
[331064214,1720056632865,-247.94,0.00017107,2]
[331064215,1720056632875,-247.94,0.00017112,2]
[331064216,1720056632883,-247.94,0.00017116,2]
[331064217,1720056632892,-808.31340611,0.00017283,5]
[331064218,1720056632901,-200.0,0.00017404,2]
[331064219,1720056632910,-1000.0,0.00017473,2]
[331064220,1720056632919,-15192.31374143,0.00017728,2]
[331064221,1720056632932,-1001.55012815,0.00017728,2]
[331064222,1720056632947,-575.27790771,0.00017728,2]
[331064223,1720056632979,-422.57359696,0.00017728,2]
[331064228,1720056638171,-155.14915483,0.00013574,2]
[331064230,1720056638181,-1416.03211035,0.00017728,2]
[331064233,1720056638196,-530.44563001,0.00017728,2]
[331064235,1720056638471,-1389.0999999,0.00017728,2]
[331064248,1720056643291,-375.18027628,0.00017728,2]
[331064292,1720056643507,1630.02206846,0.00011199,2]
[331064344,1720056645117,-306.25555575,0.00017728,2]
[331064348,1720056646323,-155.16178558,0.00013574,2]
[331064349,1720056646333,-3265.13105346,0.00017728,2]
[331064350,1720056646342,-813.8,0.00017728,2]
[331064351,1720056646352,-150.0,0.00018069,2]
[331064352,1720056646361,-150.0,0.00018097,2]
[331064353,1720056646371,-150.0,0.00018098,2]
[331064354,1720056646380,-150.0,0.00018112,2]
[331064355,1720056646389,-150.0,0.00018112,2]
[331064356,1720056646398,-150.0,0.00018113,2]
[331064357,1720056646408,-150.0,0.00018113,2]
[331064358,1720056646418,-150.0,0.00018122,2]
[331064359,1720056646432,-150.0,0.00018125,2]
[331064360,1720056646442,-150.0,0.00018128,2]
[331064361,1720056646454,-150.0,0.00018134,2]
[331064362,1720056646463,-150.0,0.0001814,2]
[331064363,1720056646473,-150.0,0.00018146,2]
[331064364,1720056646482,-150.0,0.00018158,2]
[331064365,1720056646491,-150.0,0.0001816,2]